bitfinex/quotes_ETHUSD_20251218
["timestamp","ask_amount","ask_price","bid_price","bid_amount"]
[1766043702302,0.001,2839.0,2838.3,10.83536565]
[1766043702502,0.001,2839.0,2838.4,1.08353657]
[1766043702699,0.001,2839.0,2838.5,0.04224906]
[1766043704918,0.001,2839.0,2838.4,1.08353657]
[1766043705120,0.001,2839.0,2838.3,0.60024906]
[1766043705816,0.001,2839.0,2838.3,0.558]
[1766043708025,0.001,2839.0,2838.3,4.1234634]
[1766043708325,0.001,2839.0,2838.3,0.60024906]
[1766043708721,0.001,2839.0,2838.3,4.12348122]
[1766043709101,0.001,2839.0,2838.3,0.60024906]
[1766043710025,0.001,2839.0,2838.4,0.03523111]
[1766043710321,0.001,2839.0,2838.5,0.03522987]
[1766043710619,0.001,2839.0,2838.3,4.54024685]
[1766043712526,0.001,2839.0,2838.3,1.01703046]
[1766043715848,0.001,2839.0,2838.3,4.54025161]
[1766043716140,0.001,2839.0,2838.4,0.45402516]
[1766043717406,0.001,2839.0,2838.3,0.60024906]
[1766043720543,0.001,2839.0,2838.3,1.06462929]
[1766043720725,0.001,2839.0,2838.3,4.12348075]
[1766043723040,0.001,2839.0,2838.3,0.558]
[1766043723741,0.001,2839.0,2838.3,0.60024906]
[1766043723933,0.001,2839.0,2838.4,0.45879368]
[1766043730145,0.001,2839.0,2838.3,1.06462929]
[1766043731148,0.001,2839.0,2838.3,4.12347719]
[1766043731355,0.001,2839.0,2838.3,0.60024906]
[1766043737271,0.001,2839.0,2838.3,1.06462929]
[1766043738750,0.001,2839.0,2838.3,4.12346487]
[1766043739369,0.001,2839.0,2838.4,0.41234649]
[1766043740659,0.001,2839.0,2838.5,0.04224906]
[1766043744046,0.001,2839.0,2838.4,4.39983509]
[1766043744344,0.001,2839.0,2838.5,0.04224906]
[1766043745386,0.001,2839.0,2838.5,3.56521498]
[1766043745549,0.001,2839.0,2838.6,0.44419417]
[1766043745754,0.001,2839.0,2838.6,0.4794228]
[1766043746885,0.001,2839.0,2838.7,0.556]
[1766043758490,0.001,2839.0,2838.7,7.26649245]
[1766043764706,0.001,2839.0,2838.7,7.26579156]
[1766043764875,0.001,2839.0,2838.8,1.12328333]
[1766043765399,0.001,2839.5,2838.8,1.12328333]
[1766043765576,0.001,2839.5,2838.7,7.26579156]
[1766043765775,0.001,2839.5,2838.7,0.556]
[1766043774198,1.05962114,2839.5,2838.7,0.556]
[1766043776078,3.52187081,2839.4,2838.7,7.26579156]
[1766043776405,4.58141931,2839.5,2838.7,10.78847277]
[1766043776598,4.58141931,2839.5,2838.8,1.12326669]
[1766043778910,8.10321748,2839.5,2838.6,0.44419417]
[1766043779202,1.8331,2839.4,2838.5,0.556]
[1766043779508,2.89182575,2839.4,2838.5,0.556]
[1766043779715,2.01680118,2839.3,2838.5,0.556]
[1766043780182,2.01680118,2839.3,2838.3,0.002]
[1766043780183,6.70979156,2839.1,2838.3,0.002]
[1766043780379,1.2771,2839.1,2838.3,0.002]
[1766043780583,7.04448592,2839.1,2838.3,0.002]
[1766043780798,1.85024871,2839.0,2838.3,0.002]
[1766043781411,1.05881169,2839.0,2838.4,6.70979156]
[1766043781583,3.52224296,2839.1,2838.4,6.70979156]
[1766043781783,4.58100234,2839.1,2838.4,6.70979156]
[1766043782711,3.52224296,2839.1,2838.4,6.70979156]
[1766043783209,7.04448592,2839.1,2838.3,0.002]
[1766043783509,7.04448592,2839.1,2838.4,0.67540406]
[1766043784405,7.0442378,2839.2,2838.4,0.67740406]
[1766043784705,7.0442378,2839.2,2838.4,7.38719562]
[1766043784926,3.52195114,2839.4,2838.8,6.70979156]
[1766043785086,3.52195114,2839.4,2838.9,0.67097916]
[1766043789979,7.04390228,2839.4,2838.5,4.54335158]
[1766043790185,7.04390228,2839.4,2838.6,0.46438023]
[1766043790685,3.52195114,2839.4,2838.6,0.46438023]
[1766043792315,3.52195114,2839.4,2838.5,0.558]
[1766043792316,7.04390228,2839.4,2838.5,0.558]
[1766043792490,3.52195114,2839.4,2838.5,0.558]
[1766043792695,3.52195114,2839.4,2838.6,7.55497405]
[1766043796120,7.04390228,2839.4,2838.6,7.55497405]
[1766043798930,3.52195114,2839.4,2838.6,7.55497405]
[1766043799095,3.52195114,2839.4,2838.6,11.07782937]
[1766043799393,3.52195114,2839.4,2838.6,7.55497405]
[1766043799594,3.52195114,2839.4,2838.7,1.16359165]
[1766043800125,3.52195114,2839.4,2838.8,6.70979156]
[1766043800488,3.52195114,2839.4,2838.7,1.16359165]
[1766043801620,7.04390228,2839.4,2838.7,1.16359165]
[1766043801821,7.04490228,2839.4,2838.7,1.16359165]
[1766043802595,3.52295114,2839.4,2838.7,1.16359165]
[1766043802930,3.52295114,2839.4,2838.8,0.79156323]
[1766043813913,7.04490228,2839.4,2838.7,1.16359165]
[1766043814114,3.52295114,2839.4,2838.7,1.16359165]
[1766043816742,7.04490228,2839.4,2838.7,1.16359165]
[1766043816944,7.04490228,2839.4,2838.6,0.50862929]
[1766043817111,7.04490228,2839.4,2838.6,0.002]
[1766043817441,0.71965312,2839.3,2838.6,0.46638023]
[1766043817734,7.04490228,2839.4,2838.6,0.46638023]
[1766043818039,4.58162458,2839.4,2838.6,0.46638023]
[1766043819239,8.10357572,2839.4,2838.6,0.002]
[1766043819534,7.91095985,2839.4,2838.6,0.002]
[1766043819913,0.558,2839.3,2838.6,0.002]
[1766043821045,0.558,2839.3,2838.6,0.46638023]
[1766043822238,4.08002725,2839.3,2838.6,0.46638023]
[1766043822440,4.08002725,2839.3,2838.6,3.52484899]
[1766043822441,0.558,2839.3,2838.6,3.52484899]
[1766043822634,0.001,2839.4,2838.7,0.76058121]
[1766043823345,0.559,2839.4,2838.7,0.76058121]
[1766043823643,4.08087751,2839.4,2838.7,0.76058121]
[1766043823837,0.559,2839.4,2838.7,4.28326572]
[1766043824016,4.08089144,2839.4,2838.7,4.28326572]
[1766043824418,4.08089144,2839.4,2838.7,0.76058121]
[1766043830157,4.08089144,2839.4,2838.7,4.28329487]
[1766043830342,4.08089144,2839.4,2838.8,0.43275439]
[1766043833746,3.52289144,2839.4,2838.8,0.43275439]
[1766043833949,1.05862861,2839.3,2838.8,0.43275439]
[1766043835857,0.001,2839.4,2838.8,0.43275439]
[1766043836161,1.05962861,2839.4,2838.8,0.43275439]
[1766043838360,4.58150576,2839.4,2838.8,0.43275439]
[1766043839363,1.05962861,2839.4,2838.8,0.43275439]
[1766043839737,1.05962861,2839.4,2838.9,1.02760419]
[1766043839738,0.001,2839.4,2838.9,1.02760419]
[1766043840060,0.001,2839.4,2838.9,0.556]
[1766043842167,0.001,2839.9,2839.2,3.5221189]
[1766043842460,0.001,2839.9,2839.3,0.556]
[1766043842872,0.001,2839.9,2839.3,0.69712259]
[1766043843180,0.001,2839.9,2839.3,1.64890034]
[1766043843478,0.001,2839.9,2839.4,0.14112259]
[1766043851559,0.001,2839.9,2839.4,3.66296598]
[1766043851961,0.001,2839.9,2839.4,3.52184339]
[1766043852161,0.001,2839.9,2839.5,0.14111462]
[1766043852361,0.001,2839.9,2839.6,0.3662958]
[1766043852995,0.001,2839.9,2839.4,3.52185785]
[1766043853201,0.001,2839.9,2839.7,0.14111462]
[1766043893926,0.001,2839.9,2839.5,0.002]
[1766043894128,0.001,2839.9,2839.6,0.14111462]
[1766043908839,1.3202,2839.9,2839.6,0.14111462]
[1766043909158,6.70681137,2839.8,2839.4,0.002]
[1766043909310,6.70681137,2839.8,2838.8,0.1431435]
[1766043909311,0.9496,2839.6,2838.8,0.1431435]
[1766043909503,1.3192,2839.5,2838.8,0.1431435]
[1766043909720,3.52187081,2839.4,2838.8,0.002]
[1766043909926,4.84107081,2839.4,2838.8,0.002]
[1766043910457,8.36294162,2839.4,2838.8,0.002]
[1766043910748,1.3192,2839.2,2838.8,0.002]
[1766043911306,2.13959416,2839.3,2838.8,0.002]
[1766043911756,7.0442378,2839.2,2838.8,0.002]
[1766043913938,8.3224378,2839.2,2838.8,0.002]
[1766043914246,7.0442378,2839.2,2838.8,0.002]
[1766043914460,0.7880532,2839.1,2838.8,0.002]
[1766043916346,3.52236703,2839.0,2838.8,0.002]
[1766043916544,4.31035596,2839.1,2838.8,0.002]
[1766043917021,7.83265872,2839.1,2838.8,0.002]
[1766043920665,4.31035596,2839.1,2838.8,0.002]
[1766043920869,4.43346381,2839.0,2838.8,0.002]
[1766043921669,0.91107141,2839.0,2838.8,0.002]
[1766043921841,3.52228767,2839.1,2838.8,0.002]
[1766043922170,3.52028767,2839.1,2838.8,0.002]
[1766043923142,7.0439897,2839.3,2838.8,0.002]
[1766043924038,3.52199485,2839.3,2838.8,0.002]
[1766043925189,7.04385808,2839.4,2838.8,0.002]
[1766043925400,7.80384389,2839.4,2838.8,0.002]
[1766043926196,3.52179888,2839.5,2838.8,6.70881137]
[1766043926398,3.52179888,2839.5,2838.8,7.26481137]
[1766043927896,7.59874948,2839.8,2838.8,7.26481137]
[1766043928272,8.87694948,2839.8,2838.8,7.26481137]
[1766043928457,3.52137474,2839.8,2839.4,6.70681137]
[1766043928662,0.001,2839.9,2839.1,0.04224906]
[1766043928663,0.001,2839.9,2839.5,0.67068114]
[1766043928975,0.001,2839.9,2839.2,7.26281137]
[1766043928976,3.52225508,2839.9,2839.2,7.26281137]
[1766043929292,3.52225508,2839.9,2839.2,8.32120842]
[1766043929791,3.52225508,2839.9,2839.3,0.04224906]
[1766043930203,0.001,2839.9,2839.3,0.04224906]
[1766043930405,0.001,2839.9,2839.3,3.56419641]
[1766043931300,0.001,2839.9,2839.4,1.18854048]
[1766043933214,0.001,2839.9,2839.4,7.89535185]
[1766043933506,0.001,2839.9,2839.4,1.32965361]
[1766043938580,0.001,2839.9,2839.4,0.14111313]
[1766043939113,1.2792,2839.9,2839.4,0.14111313]
[1766043939283,1.2792,2839.9,2839.2,0.556]
[1766043939606,4.80053951,2839.9,2839.2,1.61439705]
[1766043939784,3.52233951,2839.9,2839.2,1.61439705]
[1766043939987,3.52233951,2839.9,2839.3,0.5178888]
[1766043941714,0.001,2839.9,2839.3,0.5178888]
[1766043942384,0.001,2839.9,2839.2,1.61439705]
[1766043946006,1.3298,2839.9,2839.2,0.556]
[1766043946589,0.001,2839.9,2839.2,0.556]
[1766043948717,1.3288,2839.8,2839.2,0.556]
[1766043950418,3.52149874,2839.7,2839.2,0.556]
[1766043951390,7.88026758,2839.7,2839.2,0.556]
[1766043953025,9.20906758,2839.7,2839.2,0.556]
[1766043955413,3.52174678,2839.5,2839.2,0.556]
[1766043958423,3.52162276,2839.6,2839.2,0.556]
[1766043961463,4.35983427,2839.7,2839.2,0.556]
[1766043961731,0.001,2839.7,2839.2,0.556]
[1766043962337,3.522537,2839.7,2839.2,0.556]
[1766043963541,0.001,2839.7,2839.2,0.556]
[1766043967248,0.001,2839.7,2839.2,0.69712956]
[1766043969354,0.001,2839.7,2839.2,0.556]
[1766043969520,1.3288,2839.6,2839.2,0.556]
[1766043969715,0.001,2839.7,2839.2,0.556]
[1766043970048,3.52174678,2839.5,2839.2,0.556]
[1766043970216,4.35905276,2839.5,2839.2,0.556]
[1766043970743,0.83730598,2839.5,2839.2,0.556]
[1766043971053,3.52251299,2839.7,2839.2,0.556]
[1766043972249,7.04413126,2839.7,2839.2,0.556]
[1766043972441,7.04413126,2839.7,2839.0,0.002]
[1766043973819,3.52251299,2839.7,2839.0,0.002]
[1766043974635,7.04413126,2839.7,2839.0,0.002]
[1766043974823,0.80056353,2839.6,2839.0,0.002]
[1766043975945,7.04413126,2839.7,2839.0,0.002]
[1766043976652,1.3128,2839.6,2839.0,0.002]
[1766043977789,0.405504,2839.5,2839.0,0.002]
[1766043978065,0.3723,2839.3,2839.0,0.002]
[1766043978265,1.3128,2839.2,2839.0,0.002]
[1766043978442,1.3128,2839.3,2839.0,0.002]
[1766043978636,1.79626708,2839.2,2839.0,0.002]
[1766043978836,1.3128,2839.1,2839.0,0.002]
[1766043979954,1.93742752,2839.2,2839.0,0.002]
[1766043980160,1.79626708,2839.2,2839.0,0.002]
[1766043980358,0.14116044,2839.1,2839.0,0.002]
[1766043980660,3.6634034,2839.1,2839.0,0.002]
[1766043981565,4.4303036,2839.1,2839.0,0.002]
[1766043983662,5.7431036,2839.1,2839.0,0.002]
[1766043984541,1.3128,2838.9,2838.8,0.002]
[1766043984765,3.5224911,2838.9,2838.8,0.002]
[1766043985072,4.44906431,2838.9,2838.8,0.002]
[1766043985236,4.5902387,2838.9,2838.8,0.002]
[1766043986237,6.70865729,2839.5,2838.8,0.002]
[1766043986238,0.9405,2839.5,2838.8,0.002]
[1766043986443,0.961504,2839.4,2838.8,0.002]
[1766043986739,3.52236703,2839.0,2838.8,0.002]
[1766043987990,3.66346769,2839.1,2838.8,0.002]
[1766043988134,4.38202957,2839.1,2838.8,0.002]
[1766043990077,3.66146769,2839.1,2838.8,0.002]
[1766043990277,0.13916492,2839.1,2838.8,0.002]
[1766043990472,3.52217527,2839.2,2838.8,0.002]
[1766043990637,3.52229219,2839.1,2838.8,0.002]
[1766043995182,0.14116343,2839.2,2838.8,0.002]
[1766043995475,3.52146624,2839.8,2838.9,6.70895288]
[1766043995476,0.14114052,2839.6,2838.9,6.70895288]
[1766043995644,0.14114052,2839.6,2839.0,0.67109529]
[1766043998285,3.66278433,2839.6,2839.0,0.67109529]
[1766043998851,0.14114052,2839.6,2839.0,10.94663895]
[1766043999182,0.001,2839.6,2839.0,7.42429723]
[1766043999482,0.001,2839.6,2839.1,1.09467695]
[1766044002693,0.001,2839.6,2839.0,0.002]
[1766044002998,1.2677,2839.6,2839.0,0.002]
[1766044004460,0.001,2839.6,2839.0,0.002]
[1766044004906,0.001,2839.6,2839.0,6.71095288]
[1766044005884,0.001,2839.6,2839.2,6.70895288]
[1766044006087,0.001,2839.6,2839.3,0.67512019]
[1766044009814,0.001,2839.7,2839.3,0.67512019]
[1766044009988,0.001,2839.7,2839.4,6.70895288]
[1766044011016,0.001,2839.9,2839.4,6.70895288]
[1766044011223,0.001,2840.1,2839.8,6.70895288]
[1766044011381,0.001,2840.1,2839.8,0.67089529]
[1766044016437,0.001,2840.1,2839.8,0.67289529]
[1766044018235,0.001,2840.1,2839.8,0.002]
[1766044019793,0.001,2840.1,2839.8,6.71095288]
[1766044020193,0.001,2840.5,2840.0,6.70895288]
[1766044020504,3.51983251,2841.1,2840.4,6.70895288]
[1766044020705,3.52054961,2841.3,2840.6,6.70895288]
[1766044021016,1.2667,2841.2,2840.4,6.70895288]
[1766044021413,11.05248043,2841.3,2840.3,0.556]
[1766044021625,1.2667,2840.9,2840.3,0.556]
[1766044021924,1.2667,2840.9,2840.0,0.556]
[1766044022223,8.30697034,2840.8,2840.0,0.556]
[1766044022390,1.2667,2840.5,2839.8,0.002]
[1766044022590,0.9014,2840.4,2839.8,0.002]
[1766044022789,1.2667,2840.1,2839.8,0.002]
[1766044023215,0.46438023,2840.4,2839.8,0.002]
[1766044023395,0.3653,2840.1,2839.8,0.002]
[1766044023593,1.2667,2840.0,2839.8,0.002]
[1766044024826,3.52125074,2839.9,2839.8,0.002]
[1766044030038,4.78789112,2840.0,2839.8,0.002]
[1766044038550,1.2978,2840.1,2839.8,0.002]
[1766044038757,0.001,2840.1,2839.8,0.002]
[1766044044933,1.2978,2840.1,2839.8,0.002]
[1766044045159,1.2968,2840.0,2839.8,0.002]
[1766044045457,1.2968,2840.0,2839.2,3.98643804]
[1766044045656,1.2978,2840.1,2839.2,3.98643804]
[1766044046569,1.2978,2840.1,2839.3,3.52199111]
[1766044047866,4.81889057,2840.1,2839.3,3.52199111]
[1766044048043,4.81889057,2840.1,2839.4,0.75084703]
[1766044049464,3.52209057,2840.1,2839.4,0.75084703]
[1766044050163,8.33998114,2840.1,2839.4,0.75084703]
[1766044051070,8.33998114,2840.1,2839.1,0.558]
[1766044051071,7.04318114,2840.1,2839.1,0.558]
[1766044051365,7.04318114,2840.1,2839.1,1.02238023]
[1766044051563,0.9568,2840.0,2839.1,1.02238023]
[1766044051859,1.2968,2839.9,2839.1,4.54461989]
[1766044052042,1.2968,2839.9,2839.1,1.02238023]
[1766044052043,4.81816814,2839.9,2839.1,1.02238023]
[1766044052242,8.33953628,2839.9,2839.2,1.12549027]
[1766044052836,8.33953628,2839.9,2839.1,0.558]
[1766044052837,8.00501614,2839.8,2839.1,0.558]
[1766044053169,8.00501614,2839.8,2839.1,0.002]
[1766044053170,6.70821614,2839.8,2839.1,0.002]
[1766044053338,0.9568,2839.5,2839.1,0.002]
[1766044053668,1.2968,2839.5,2839.1,0.002]
[1766044054270,3.52187081,2839.4,2839.1,0.002]
[1766044055942,4.8186042,2839.5,2839.1,0.002]
[1766044056670,3.52154375,2839.7,2839.1,0.002]
[1766044056872,3.52154375,2839.7,2839.1,0.67322161]
[1766044057550,3.52154375,2839.7,2839.1,0.002]
[1766044062573,4.07742266,2839.8,2839.1,0.002]
[1766044062878,7.59884532,2839.8,2839.1,0.002]
[1766044063380,8.90354532,2839.8,2839.1,0.002]
[1766044064481,8.34754532,2839.8,2839.1,0.002]
[1766044065987,3.52162276,2839.6,2839.1,0.002]
[1766044067776,7.04288264,2839.8,2839.1,0.002]
[1766044067991,3.52142266,2839.8,2839.1,0.002]
[1766044068973,4.82612266,2839.8,2839.1,0.002]
[1766044069789,4.82712266,2839.8,2839.1,0.002]
[1766044070202,3.52242266,2839.8,2839.1,0.002]
[1766044070576,7.04388264,2839.8,2839.1,0.002]
[1766044071574,1.3047,2839.7,2839.1,0.002]
[1766044072167,2.54729172,2839.7,2839.1,0.002]
[1766044073292,1.24259172,2839.7,2839.1,0.002]
[1766044074794,3.52162276,2839.6,2839.1,0.002]
[1766044077185,3.52151513,2839.7,2839.1,0.002]
[1766044077583,7.04303026,2839.7,2839.1,0.002]
[1766044077783,0.83487303,2839.6,2839.1,0.002]
[1766044078380,2.13957303,2839.6,2839.1,0.002]
[1766044080298,3.52174615,2839.6,2839.1,0.002]
[1766044080673,3.52156685,2839.7,2839.1,0.002]
[1766044080869,3.52243439,2839.8,2839.1,0.002]
[1766044081272,0.001,2839.8,2839.1,0.002]
[1766044082074,0.001,2839.8,2839.1,3.52424296]
[1766044082274,0.001,2839.8,2839.2,0.70907949]
[1766044082501,0.001,2839.8,2839.2,1.26507949]
[1766044086227,0.001,2839.8,2839.2,4.78717669]
[1766044089130,0.001,2839.8,2839.2,1.26507949]
[1766044089431,0.001,2839.8,2839.2,0.556]
[1766044094534,0.001,2839.8,2839.2,4.0781162]
[1766044095424,0.001,2839.8,2839.2,4.3781462]
[1766044097418,0.001,2839.8,2839.2,0.85603]
[1766044103336,0.001,2839.8,2839.2,4.37813252]
[1766044103536,0.001,2839.8,2839.3,0.43801325]
[1766044106554,0.001,2839.8,2839.3,3.96000662]
[1766044107147,0.001,2839.8,2839.3,0.43801325]
[1766044108150,0.001,2839.8,2839.3,3.95999829]
[1766044108549,0.001,2839.8,2839.4,6.75053015]
[1766044108844,3.52025909,2840.7,2839.7,6.70828109]
[1766044109043,0.46438023,2840.7,2839.8,4.119609]
[1766044109213,7.04127034,2840.8,2839.8,4.119609]
[1766044110038,3.52113517,2840.8,2839.8,7.64098374]
[1766044110235,3.52113517,2840.8,2840.0,0.04224906]
[1766044110449,0.001,2840.8,2840.0,0.04224906]
[1766044111053,0.001,2840.8,2840.1,3.52100278]
[1766044111231,0.001,2840.8,2840.2,0.556]
[1766044114829,0.001,2840.8,2839.9,1.43492648]
[1766044115035,0.3475,2840.6,2839.9,0.556]
[1766044115234,1.2737,2840.5,2839.9,0.556]
[1766044115655,1.2737,2840.5,2839.4,0.04224906]
[1766044115656,3.52063089,2840.4,2839.7,0.556]
[1766044116353,1.2737,2840.3,2839.7,0.556]
[1766044116557,10.56189267,2840.4,2839.7,0.556]
[1766044116726,1.46169327,2840.3,2839.7,0.556]
[1766044117052,1.2737,2840.1,2839.3,0.556]
[1766044119958,7.04225352,2840.0,2839.3,0.556]
[1766044124556,8.38945352,2840.0,2839.3,0.556]
[1766044125860,8.38945352,2840.0,2839.3,0.558]
[1766044126635,7.04225352,2840.0,2839.3,0.558]
[1766044126845,7.04225352,2840.0,2839.3,0.99622691]
[1766044127462,3.52112676,2840.0,2839.3,0.99622691]
[1766044128151,7.04225352,2840.0,2839.3,0.99622691]
[1766044128562,3.52112676,2840.0,2839.3,0.99622691]
[1766044129650,3.52112676,2840.0,2839.4,0.0352187]
[1766044129848,3.52112676,2840.0,2839.5,0.45533741]
[1766044130166,1.5215695,2840.3,2839.5,0.45533741]
[1766044130167,0.001,2840.3,2839.5,0.45533741]
[1766044130371,3.52038301,2840.6,2839.8,6.70840877]
[1766044130538,7.0406094,2840.7,2839.8,11.4608392]
[1766044130854,3.5203047,2840.7,2839.8,11.4608392]
[1766044131057,3.5203047,2840.7,2839.8,11.50308826]
[1766044131866,8.3878094,2840.7,2839.8,1.27331484]
[1766044132165,13.74901817,2840.7,2839.8,1.23106578]
[1766044132333,6.70840877,2840.5,2839.7,0.556]
[1766044132538,1.3472,2840.4,2839.7,0.556]
[1766044132738,4.86792339,2840.4,2839.7,0.556]
[1766044133550,8.38864678,2840.4,2839.7,0.556]
[1766044134470,4.86792339,2840.4,2839.7,0.556]
[1766044134670,4.86792339,2840.4,2839.7,1.05594274]
[1766044137773,4.86792339,2840.4,2839.7,4.5774395]
[1766044138070,3.52072339,2840.4,2839.7,1.05594274]
[1766044139646,3.52050953,2840.5,2839.7,1.05594274]
[1766044140378,7.04101906,2840.5,2839.7,1.05594274]
[1766044140676,9.81886184,2840.5,2839.7,1.05594274]
[1766044141074,6.29835231,2840.5,2839.7,4.57742984]
[1766044141387,3.52050953,2840.5,2839.7,4.57742984]
[1766044143296,8.38821906,2840.5,2839.7,1.05594274]
[1766044143597,8.38821906,2840.5,2839.7,0.556]
[1766044144196,1.3472,2840.4,2839.7,0.556]
[1766044144356,0.9974,2840.4,2839.7,0.556]
[1766044144554,0.3498,2840.3,2839.7,0.556]
[1766044144755,0.3498,2840.3,2839.7,1.01040628]
[1766044144969,0.9974,2840.4,2839.7,1.01040628]
[1766044145152,0.9974,2840.4,2839.7,4.53187498]
[1766044145376,3.52050953,2840.5,2839.7,4.53187498]
[1766044150793,7.04101906,2840.5,2839.7,1.01040628]
[1766044150995,3.52050953,2840.5,2839.7,4.53188494]
[1766044151899,8.36171906,2840.5,2839.7,1.01040628]
[1766044152114,9.25359097,2840.5,2839.7,1.01040628]
[1766044153084,1.2921,2840.4,2839.7,1.01040628]
[1766044153813,1.2921,2840.4,2839.7,4.53190367]
[1766044154715,1.2921,2840.4,2839.7,1.01040628]
[1766044155202,3.52075484,2840.3,2839.7,1.01040628]
[1766044155603,4.81285484,2840.3,2839.7,0.556]
[1766044155804,4.34637641,2840.3,2839.7,0.556]
[1766044156010,3.05427641,2840.3,2839.7,0.556]
[1766044156313,3.52068604,2840.4,2839.7,4.07749813]
[1766044157079,3.52068604,2840.4,2839.7,0.556]
[1766044159502,3.52068604,2840.4,2839.7,4.07748058]
[1766044159907,3.52068604,2840.4,2839.7,5.55910587]
[1766044160310,3.5215571,2840.5,2839.7,5.55910587]
[1766044161901,0.001,2840.5,2839.7,2.03762529]
[1766044162218,1.2921,2840.4,2839.7,2.03762529]
[1766044164208,4.8127911,2840.4,2839.7,2.03762529]
[1766044165084,3.5206911,2840.4,2839.7,2.03762529]
[1766044170413,3.5206911,2840.4,2839.8,1.22665994]
[1766044170618,3.5206911,2840.4,2839.7,2.03762529]
[1766044171316,3.5206911,2840.4,2839.7,5.55911117]
[1766044171818,3.5206911,2840.4,2839.7,2.03762529]
[1766044172316,3.5206911,2840.4,2839.7,5.55911225]
[1766044173213,7.0413822,2840.4,2839.7,2.03762529]
[1766044173417,3.5206911,2840.4,2839.7,2.03762529]
[1766044174819,3.5206911,2840.4,2839.7,5.55911688]
[1766044175182,3.5206911,2840.4,2839.8,1.22664947]
[1766044175387,3.5206911,2840.4,2839.7,5.55911688]
[1766044176618,3.5206911,2840.4,2839.7,5.60136594]
[1766044176991,3.52154482,2840.5,2839.7,5.60136594]
[1766044177524,3.52154482,2840.5,2839.8,6.70537783]
[1766044179414,3.52154482,2840.5,2839.7,5.60136594]
[1766044180323,3.52154482,2840.5,2839.8,3.52136409]
[1766044180915,3.52154482,2840.5,2839.7,5.6012912]
[1766044185311,7.04208964,2840.5,2839.7,2.07987435]
[1766044185526,7.916159,2840.5,2839.7,2.07987435]
[1766044186026,9.223259,2840.5,2839.7,2.07987435]
[1766044186331,9.223259,2840.5,2839.7,5.60136272]
[1766044186627,5.70271418,2840.5,2839.7,5.60136272]
[1766044186805,3.52154482,2840.5,2839.7,5.60136272]
[1766044187731,3.52154482,2840.5,2839.6,0.002]
[1766044188025,0.957,2839.9,2839.6,0.002]
[1766044188227,0.405504,2840.2,2839.6,0.002]
[1766044188525,1.3071,2839.5,2839.3,0.002]
[1766044188906,0.3501,2839.7,2839.3,0.002]
[1766044189233,1.3071,2839.5,2839.3,0.002]
[1766044189930,7.04274948,2839.8,2839.3,0.002]
[1766044190228,1.3071,2839.6,2839.3,0.002]
[1766044192536,4.82872276,2839.6,2839.5,0.002]
[1766044194000,3.52114515,2840.0,2839.5,0.002]
[1766044195033,4.82824515,2840.0,2839.5,0.002]
[1766044195733,3.52114515,2840.0,2839.5,0.002]
[1766044195902,3.52114515,2840.0,2839.5,6.70639828]
[1766044196104,3.52114515,2840.0,2839.6,0.67063983]
[1766044196303,3.52114515,2840.0,2839.5,6.70639828]
[1766044196530,3.5209043,2840.2,2839.5,0.002]
[1766044196531,3.52104707,2840.1,2839.5,0.002]
[1766044198836,3.52091807,2840.2,2839.5,0.002]
[1766044199038,3.5207986,2840.3,2839.6,0.04224906]
[1766044199334,3.5207986,2840.3,2839.7,0.67486473]
[1766044201040,3.52168175,2840.4,2839.7,0.67486473]
[1766044201335,0.001,2840.3,2839.7,0.67486473]
[1766044201805,0.001,2840.3,2839.7,1.23086473]
[1766044202939,3.5216418,2840.4,2839.8,10.26796575]
[1766044202940,0.001,2840.4,2839.8,10.26796575]
[1766044203150,0.001,2840.4,2839.9,1.14988305]
[1766044205126,0.001,2840.4,2839.9,4.67112023]
[1766044206417,0.001,2840.4,2839.9,1.14988305]
[1766044206730,0.001,2840.4,2839.7,0.556]
[1766044208138,0.001,2840.4,2839.7,0.59824906]
[1766044209046,0.001,2840.4,2839.7,4.11973036]
[1766044209261,0.001,2840.7,2840.1,6.74664734]
[1766044209542,0.001,2840.7,2840.2,0.67466473]
[1766044213848,0.001,2840.7,2840.1,0.59824906]
[1766044214279,0.001,2840.7,2840.1,0.556]
[1766044216355,3.52125909,2840.7,2840.1,0.556]
[1766044217932,7.04151818,2840.7,2840.1,0.556]
[1766044218158,7.04151818,2840.7,2839.9,0.556]
[1766044218376,3.52063089,2840.4,2839.9,0.556]
[1766044218550,4.83443089,2840.4,2839.9,0.556]
[1766044218750,3.52063089,2840.4,2839.9,0.556]
[1766044220078,3.52054307,2840.5,2839.9,0.556]
[1766044222380,4.83422865,2840.6,2839.9,0.556]
[1766044223377,3.52131812,2840.7,2839.9,4.53142785]
[1766044224481,3.52131812,2840.7,2840.0,0.03521126]
[1766044224849,3.52131812,2840.7,2839.9,4.53142785]
[1766044225067,0.001,2840.5,2840.0,0.03521126]
[1766044225381,0.001,2840.5,2839.9,4.53142785]
[1766044225547,0.001,2840.5,2840.0,0.80528025]
[1766044225870,0.001,2840.5,2840.0,0.84049151]
[1766044226192,0.001,2840.5,2840.0,0.80528025]
[1766044227983,0.001,2840.5,2839.9,0.59824906]
[1766044228180,0.001,2840.5,2839.9,4.1194372]
[1766044228387,0.001,2840.5,2839.9,0.59824906]
[1766044228988,0.001,2840.5,2839.9,4.11945744]
[1766044229182,0.001,2840.5,2839.9,0.59824906]
[1766044229485,0.001,2840.5,2839.9,1.73131141]
[1766044229665,0.001,2840.5,2839.9,1.68906235]
[1766044230187,0.001,2840.5,2839.9,5.25253444]
[1766044233383,0.001,2840.5,2839.9,5.25453444]
[1766044235290,0.001,2840.5,2839.9,8.77578518]
[1766044235461,0.001,2840.5,2840.0,0.92401654]
[1766044235854,0.001,2840.5,2840.1,0.04224906]
[1766044236688,0.001,2840.5,2840.1,3.56320582]
[1766044237273,0.001,2840.7,2840.1,3.56320582]